[Event "December 19 Early 2023"]
[Site "https://www.chess.com"]
[Date "2023.12.19"]
[Round "7"]
[White "Von Buelow, Georg"]
[Black "Can, Melih Kaan"]
[Result "1-0"]
[Board "183"]
[TimeControl "180+1"]
[WhiteFideId "4620658"]
[BlackFideId "6317383"]
[WhiteElo "2223"]
[BlackElo "2022"]
[WhiteTeam "GER"]
[BlackTeam "TUR"]
[WhiteClock "0:00:22"]
[BlackClock "0:00:33"]

1. e4 {[%clk 0:03:00]}  c5 {[%clk 0:02:12]} 2. Nf3 {[%clk 0:02:58]}  a6 {[%clk 0:02:13]} 3. c3 {[%clk 0:02:58]}  e6 {[%clk 0:02:13]} 4. d4 {[%clk 0:02:57]}  d5 {[%clk 0:02:13]} 5. exd5 {[%clk 0:02:53]}  exd5 {[%clk 0:02:13]} 6. dxc5 {[%clk 0:02:41]}  Bxc5 {[%clk 0:02:13]} 7. Bd3 {[%clk 0:02:42]}  Ne7 {[%clk 0:02:13]} 8. O-O {[%clk 0:02:42]}  O-O {[%clk 0:02:13]} 9. Nbd2 {[%clk 0:02:41]}  Nbc6 {[%clk 0:02:12]} 10. h3 {[%clk 0:02:36]}  Bf5 {[%clk 0:02:11]} 11. Nb3 {[%clk 0:02:36]}  Ba7 {[%clk 0:02:10]} 12. Bg5 {[%clk 0:02:33]}  f6 {[%clk 0:02:10]} 13. Bf4 {[%clk 0:02:32]}  Qd7 {[%clk 0:02:10]} 14. Re1 {[%clk 0:02:27]}  Rad8 {[%clk 0:02:09]} 15. Qd2 {[%clk 0:02:17]}  Ng6 {[%clk 0:02:06]} 16. Bg3 {[%clk 0:02:16]}  Rfe8 {[%clk 0:02:02]} 17. Bxf5 {[%clk 0:02:11]}  Qxf5 {[%clk 0:02:02]} 18. Nbd4 {[%clk 0:02:11]}  Qd7 {[%clk 0:01:59]} 19. Nxc6 {[%clk 0:02:01]}  bxc6 {[%clk 0:01:57]} 20. Rad1 {[%clk 0:01:54]}  Ne7 {[%clk 0:01:53]} 21. Nd4 {[%clk 0:01:52]}  Nf5 {[%clk 0:01:49]} 22. Nxf5 {[%clk 0:01:50]}  Qxf5 {[%clk 0:01:49]} 23. Rxe8+ {[%clk 0:01:45]}  Rxe8 {[%clk 0:01:49]} 24. Re1 {[%clk 0:01:46]}  Rxe1+ {[%clk 0:01:48]} 25. Qxe1 {[%clk 0:01:46]}  Kf7 {[%clk 0:01:48]} 26. a3 {[%clk 0:01:37]}  Qc2 {[%clk 0:01:47]} 27. b4 {[%clk 0:01:24]}  Qb2 {[%clk 0:01:40]} 28. Qd1 {[%clk 0:01:17]}  Qxc3 {[%clk 0:01:31]} 29. Qh5+ {[%clk 0:01:14]}  Kf8 {[%clk 0:01:31]} 30. Kh2 {[%clk 0:01:10]}  Qe1 {[%clk 0:01:17]} 31. Qf5 {[%clk 0:00:42]}  h5 {[%clk 0:00:54]} 32. Qc8+ {[%clk 0:00:35]}  Kf7 {[%clk 0:00:52]} 33. Qb7+ {[%clk 0:00:31]}  Qe7 {[%clk 0:00:52]} 34. Qxc6 {[%clk 0:00:27]}  a5 {[%clk 0:00:51]} 35. Qxd5+ {[%clk 0:00:27]}  Kf8 {[%clk 0:00:51]} 36. Qxa5 {[%clk 0:00:23]}  g5 {[%clk 0:00:50]} 37. Qd5 {[%clk 0:00:21]}  Kg7 {[%clk 0:00:46]} 38. Qd6 {[%clk 0:00:19]}  Qe2 {[%clk 0:00:43]} 39. Qc7+ {[%clk 0:00:18]}  Kg6 {[%clk 0:00:42]} 40. Qxa7 {[%clk 0:00:18]}  h4 {[%clk 0:00:43]} 41. Bd6 {[%clk 0:00:15]}  Qd3 {[%clk 0:00:42]} 42. Qc5 {[%clk 0:00:14]}  Qxa3 {[%clk 0:00:35]} 43. b5 {[%clk 0:00:12]}  Qd3 {[%clk 0:00:34]} 44. b6 {[%clk 0:00:13]}  Qb1 {[%clk 0:00:34]} 45. Qd4 {[%clk 0:00:12]}  Qb5 {[%clk 0:00:31]} 46. Be7 {[%clk 0:00:11]}  Qc6 {[%clk 0:00:30]} 47. Qxf6+ {[%clk 0:00:11]}  Qxf6 {[%clk 0:00:29]} 48. Bxf6 {[%clk 0:00:12]}  Kxf6 {[%clk 0:00:30]} 49. b7 {[%clk 0:00:12]}  g4 {[%clk 0:00:31]} 50. hxg4 {[%clk 0:00:12]}  h3 {[%clk 0:00:31]} 51. gxh3 {[%clk 0:00:12]}  Kg5 {[%clk 0:00:31]} 52. Kg3 {[%clk 0:00:13]}  Kh6 {[%clk 0:00:32]} 53. f4 {[%clk 0:00:13]}  Kh7 {[%clk 0:00:32]} 54. h4 {[%clk 0:00:14]}  Kg7 {[%clk 0:00:33]} 55. b8=R {[%clk 0:00:13]}  Kh7 {[%clk 0:00:33]} 56. Rb6 {[%clk 0:00:13]}  Kg7 {[%clk 0:00:33]} 57. f5 {[%clk 0:00:14]}  Kh7 {[%clk 0:00:33]} 58. g5 {[%clk 0:00:15]}  Kg7 {[%clk 0:00:34]} 59. h5 {[%clk 0:00:16]}  Kh7 {[%clk 0:00:34]} 60. Rh6+ {[%clk 0:00:15]}  Kg7 {[%clk 0:00:35]} 61. Kf4 {[%clk 0:00:16]}  Kf7 {[%clk 0:00:35]} 62. Rg6 {[%clk 0:00:16]}  Kf8 {[%clk 0:00:35]} 63. Ke5 {[%clk 0:00:16]}  Kf7 {[%clk 0:00:35]} 64. h6 {[%clk 0:00:15]}  Kf8 {[%clk 0:00:34]} 65. Rg7 {[%clk 0:00:15]}  Ke8 {[%clk 0:00:33]} 66. g6 {[%clk 0:00:15]}  Kd8 {[%clk 0:00:34]} 67. f6 {[%clk 0:00:16]}  Kc8 {[%clk 0:00:35]} 68. Re7 {[%clk 0:00:16]}  Kb8 {[%clk 0:00:36]} 69. f7 {[%clk 0:00:17]}  Kc8 {[%clk 0:00:36]} 70. Kf6 {[%clk 0:00:17]}  Kd8 {[%clk 0:00:37]} 71. h7 {[%clk 0:00:17]}  Kc8 {[%clk 0:00:37]} 72. Kg7 {[%clk 0:00:18]}  Kd8 {[%clk 0:00:36]} 73. Kf8 {[%clk 0:00:19]}  Kc8 {[%clk 0:00:35]} 74. Ke8 {[%clk 0:00:20]}  Kb8 {[%clk 0:00:35]} 75. g7 {[%clk 0:00:20]}  Kc8 {[%clk 0:00:35]} 76. f8=R {[%clk 0:00:19]}  Kb8 {[%clk 0:00:35]} 77. g8=Q {[%clk 0:00:19]}  Kc8 {[%clk 0:00:35]} 78. h8=Q {[%clk 0:00:18]}  Kb8 {[%clk 0:00:36]} 79. Qh2+ {[%clk 0:00:18]}  Kc8 {[%clk 0:00:34]} 80. Qb8+ {[%clk 0:00:19]}  Kxb8 {[%clk 0:00:33]} 81. Qg3+ {[%clk 0:00:20]}  Kc8 {[%clk 0:00:33]} 82. Qb8+ {[%clk 0:00:21]}  Kxb8 {[%clk 0:00:33]} 83. Kf7# {[%clk 0:00:22]} 1-0

[Event "December 19 Early 2023"]
[Site "https://www.chess.com"]
[Date "2023.12.19"]
[Round "7"]
[White "Cramling Bellon, Anna"]
[Black "Kotlyar, Kirill"]
[Result "1-0"]
[Board "185"]
[TimeControl "180+1"]
[WhiteFideId "32009232"]
[BlackFideId "24145599"]
[WhiteElo "1976"]
[BlackElo "2397"]
[WhiteTeam "SWE"]
[BlackTeam "RUS"]
[WhiteClock "0:00:19"]
[BlackClock "0:00:18"]

1. d4 {[%clk 0:03:00]}  Nf6 {[%clk 0:02:58]} 2. c4 {[%clk 0:03:01]}  g6 {[%clk 0:02:57]} 3. Nc3 {[%clk 0:03:00]}  d5 {[%clk 0:02:57]} 4. cxd5 {[%clk 0:03:00]}  Nxd5 {[%clk 0:02:58]} 5. e4 {[%clk 0:03:00]}  Nxc3 {[%clk 0:02:58]} 6. bxc3 {[%clk 0:03:01]}  Bg7 {[%clk 0:02:59]} 7. Qa4+ {[%clk 0:03:02]}  Nd7 {[%clk 0:02:54]} 8. Nf3 {[%clk 0:03:02]}  c5 {[%clk 0:02:54]} 9. Bg5 {[%clk 0:03:01]}  cxd4 {[%clk 0:02:49]} 10. cxd4 {[%clk 0:03:01]}  O-O {[%clk 0:02:49]} 11. Rc1 {[%clk 0:02:42]}  Nb6 {[%clk 0:02:47]} 12. Qb4 {[%clk 0:02:34]}  Re8 {[%clk 0:02:41]} 13. Bb5 {[%clk 0:02:31]}  Bd7 {[%clk 0:02:41]} 14. O-O {[%clk 0:02:21]}  Rc8 {[%clk 0:02:34]} 15. Rxc8 {[%clk 0:02:15]}  Qxc8 {[%clk 0:02:34]} 16. Rc1 {[%clk 0:02:06]}  Qd8 {[%clk 0:02:34]} 17. Bf4 {[%clk 0:01:43]}  Bxb5 {[%clk 0:02:17]} 18. Qxb5 {[%clk 0:01:41]}  g5 {[%clk 0:01:26]} 19. Bxg5 {[%clk 0:01:29]}  Qb8 {[%clk 0:01:19]} 20. Bf4 {[%clk 0:01:21]}  Qa8 {[%clk 0:01:17]} 21. Qh5 {[%clk 0:01:09]}  f6 {[%clk 0:01:02]} 22. Nh4 {[%clk 0:01:00]}  Rc8 {[%clk 0:01:01]} 23. Nf5 {[%clk 0:00:48]}  Rxc1+ {[%clk 0:00:59]} 24. Bxc1 {[%clk 0:00:48]}  e6 {[%clk 0:00:33]} 25. Nxg7 {[%clk 0:00:21]}  Kxg7 {[%clk 0:00:34]} 26. Bh6+ {[%clk 0:00:20]}  Kh8 {[%clk 0:00:29]} 27. Qf7 {[%clk 0:00:20]}  Qc8 {[%clk 0:00:18]} 28. Qg7# {[%clk 0:00:19]} 1-0

[Event "December 19 Early 2023"]
[Site "https://www.chess.com"]
[Date "2023.12.19"]
[Round "7"]
[White "Guzman Lozano, Campo Elias"]
[Black "Dwilewicz, Katarzyna"]
[Result "0-1"]
[Board "186"]
[TimeControl "180+1"]
[WhiteFideId "4403746"]
[BlackFideId "1148486"]
[WhiteElo "2099"]
[BlackElo "2098"]
[WhiteTeam "COL"]
[BlackTeam "POL"]
[WhiteClock "0:00:33"]
[BlackClock "0:00:16"]

1. e4 {[%clk 0:02:51]}  g6 {[%clk 0:03:00]} 2. d4 {[%clk 0:02:50]}  Bg7 {[%clk 0:03:00]} 3. Nf3 {[%clk 0:02:50]}  d6 {[%clk 0:02:58]} 4. h3 {[%clk 0:02:49]}  Nf6 {[%clk 0:02:57]} 5. Nc3 {[%clk 0:02:48]}  O-O {[%clk 0:02:57]} 6. Be3 {[%clk 0:02:47]}  c6 {[%clk 0:02:56]} 7. Qd2 {[%clk 0:02:47]}  b5 {[%clk 0:02:55]} 8. a3 {[%clk 0:02:46]}  a5 {[%clk 0:02:44]} 9. Be2 {[%clk 0:02:43]}  Bb7 {[%clk 0:02:40]} 10. e5 {[%clk 0:02:28]}  dxe5 {[%clk 0:02:23]} 11. dxe5 {[%clk 0:02:27]}  Qxd2+ {[%clk 0:02:23]} 12. Kxd2 {[%clk 0:02:24]}  Rd8+ {[%clk 0:02:21]} 13. Ke1 {[%clk 0:02:24]}  Nfd7 {[%clk 0:02:12]} 14. e6 {[%clk 0:02:12]}  fxe6 {[%clk 0:02:12]} 15. Ng5 {[%clk 0:02:12]}  Nf8 {[%clk 0:02:11]} 16. Rd1 {[%clk 0:02:09]}  Rxd1+ {[%clk 0:01:59]} 17. Nxd1 {[%clk 0:02:03]}  h6 {[%clk 0:01:59]} 18. Ne4 {[%clk 0:02:02]}  Nbd7 {[%clk 0:01:59]} 19. f4 {[%clk 0:01:55]}  e5 {[%clk 0:01:57]} 20. Rf1 {[%clk 0:01:53]}  exf4 {[%clk 0:01:56]} 21. Rxf4 {[%clk 0:01:51]}  Ne6 {[%clk 0:01:53]} 22. Rf2 {[%clk 0:01:47]}  Nf6 {[%clk 0:01:49]} 23. Nxf6+ {[%clk 0:01:43]}  exf6 {[%clk 0:01:43]} 24. Bf3 {[%clk 0:01:39]}  Re8 {[%clk 0:01:38]} 25. Kd2 {[%clk 0:01:33]}  f5 {[%clk 0:01:38]} 26. Kc1 {[%clk 0:01:32]}  Nd4 {[%clk 0:01:30]} 27. Bxd4 {[%clk 0:01:24]}  Bxd4 {[%clk 0:01:30]} 28. Rd2 {[%clk 0:01:24]}  Rd8 {[%clk 0:01:20]} 29. c3 {[%clk 0:01:21]}  Bf6 {[%clk 0:01:19]} 30. Rxd8+ {[%clk 0:01:21]}  Bxd8 {[%clk 0:01:20]} 31. Kd2 {[%clk 0:01:18]}  Kf7 {[%clk 0:01:19]} 32. Ke2 {[%clk 0:01:12]}  Ke6 {[%clk 0:01:19]} 33. Nf2 {[%clk 0:01:11]}  Kd6 {[%clk 0:01:07]} 34. Nd3 {[%clk 0:01:11]}  g5 {[%clk 0:00:57]} 35. g4 {[%clk 0:01:07]}  fxg4 {[%clk 0:00:53]} 36. hxg4 {[%clk 0:01:05]}  Bc8 {[%clk 0:00:44]} 37. Nf2 {[%clk 0:01:01]}  Be6 {[%clk 0:00:43]} 38. Ne4+ {[%clk 0:01:00]}  Ke5 {[%clk 0:00:43]} 39. Kd3 {[%clk 0:01:00]}  Bd5 {[%clk 0:00:42]} 40. Nd2 {[%clk 0:00:52]}  Bxf3 {[%clk 0:00:30]} 41. Nxf3+ {[%clk 0:00:51]}  Kf4 {[%clk 0:00:30]} 42. Nd4 {[%clk 0:00:51]}  Kxg4 {[%clk 0:00:30]} 43. Nxc6 {[%clk 0:00:51]}  Bc7 {[%clk 0:00:27]} 44. Nd4 {[%clk 0:00:50]}  h5 {[%clk 0:00:28]} 45. Nxb5 {[%clk 0:00:48]}  h4 {[%clk 0:00:18]} 46. Nxc7 {[%clk 0:00:47]}  h3 {[%clk 0:00:19]} 47. Nd5 {[%clk 0:00:46]}  h2 {[%clk 0:00:19]} 48. Ne3+ {[%clk 0:00:46]}  Kf3 {[%clk 0:00:19]} 49. Nc4 {[%clk 0:00:43]}  h1=Q {[%clk 0:00:19]} 50. Ne5+ {[%clk 0:00:43]}  Kf4 {[%clk 0:00:18]} 51. Ng6+ {[%clk 0:00:42]}  Kf5 {[%clk 0:00:17]} 52. Ne7+ {[%clk 0:00:42]}  Ke6 {[%clk 0:00:18]} 53. Nc8 {[%clk 0:00:33]}  Qb7 {[%clk 0:00:16]} 0-1

[Event "December 19 Early 2023"]
[Site "https://www.chess.com"]
[Date "2023.12.19"]
[Round "7"]
[White "Dilmukhametov, Artur"]
[Black "Donatti, Alvaro"]
[Result "1-0"]
[Board "190"]
[TimeControl "180+1"]
[WhiteFideId "24179922"]
[BlackFideId "3000303"]
[WhiteElo "2176"]
[BlackElo "2138"]
[WhiteTeam "RUS"]
[BlackTeam "URU"]
[WhiteClock "0:00:11"]
[BlackClock "0:00:00"]

1. e4 {[%clk 0:02:57]}  c5 {[%clk 0:02:59]} 2. d4 {[%clk 0:02:57]}  cxd4 {[%clk 0:02:58]} 3. c3 {[%clk 0:02:57]}  e6 {[%clk 0:02:58]} 4. Nf3 {[%clk 0:02:57]}  Nc6 {[%clk 0:02:54]} 5. Bc4 {[%clk 0:02:52]}  Nf6 {[%clk 0:02:43]} 6. e5 {[%clk 0:02:50]}  Nd5 {[%clk 0:02:42]} 7. O-O {[%clk 0:02:46]}  Nb6 {[%clk 0:02:38]} 8. Bb3 {[%clk 0:02:43]}  d5 {[%clk 0:02:34]} 9. cxd4 {[%clk 0:02:41]}  Be7 {[%clk 0:02:32]} 10. Nc3 {[%clk 0:02:36]}  O-O {[%clk 0:02:31]} 11. Bc2 {[%clk 0:02:37]}  Re8 {[%clk 0:02:24]} 12. a3 {[%clk 0:02:36]}  g6 {[%clk 0:02:23]} 13. Bh6 {[%clk 0:02:29]}  Nc4 {[%clk 0:02:19]} 14. Rb1 {[%clk 0:02:19]}  Qa5 {[%clk 0:02:10]} 15. Ne2 {[%clk 0:01:33]}  Bd7 {[%clk 0:02:02]} 16. h4 {[%clk 0:01:33]}  Bf8 {[%clk 0:01:56]} 17. Qc1 {[%clk 0:01:26]}  Ne7 {[%clk 0:01:52]} 18. h5 {[%clk 0:01:25]}  Nf5 {[%clk 0:01:50]} 19. Bxf5 {[%clk 0:01:22]}  exf5 {[%clk 0:01:49]} 20. Qg5 {[%clk 0:01:19]}  Qd8 {[%clk 0:01:34]} 21. Qf4 {[%clk 0:01:08]}  Rc8 {[%clk 0:01:16]} 22. Nc3 {[%clk 0:01:05]}  Be6 {[%clk 0:01:15]} 23. hxg6 {[%clk 0:00:59]}  fxg6 {[%clk 0:01:13]} 24. Bg5 {[%clk 0:00:58]}  Be7 {[%clk 0:01:11]} 25. Qh4 {[%clk 0:00:57]}  b6 {[%clk 0:01:00]} 26. Bf6 {[%clk 0:00:32]}  Bxf6 {[%clk 0:00:53]} 27. exf6 {[%clk 0:00:33]}  Nd6 {[%clk 0:00:33]} 28. Ng5 {[%clk 0:00:31]}  h5 {[%clk 0:00:32]} 29. Nxe6 {[%clk 0:00:22]}  Rxe6 {[%clk 0:00:30]} 30. Nxd5 {[%clk 0:00:23]}  Rc4 {[%clk 0:00:19]} 31. Ne7+ {[%clk 0:00:22]}  Kh7 {[%clk 0:00:16]} 32. Qg5 {[%clk 0:00:20]}  Qe8 {[%clk 0:00:14]} 33. d5 {[%clk 0:00:19]}  Ree4 {[%clk 0:00:12]} 34. Qg3 {[%clk 0:00:16]}  f4 {[%clk 0:00:09]} 35. Qg5 {[%clk 0:00:13]}  Qf7 {[%clk 0:00:07]} 36. Rfe1 {[%clk 0:00:11]}  Rcd4 {[%clk 0:00:00]} 37. Rbc1 {[%clk 0:00:11]} 1-0

[Event "December 19 Early 2023"]
[Site "https://www.chess.com"]
[Date "2023.12.19"]
[Round "7"]
[White "Player, Edmund C"]
[Black "Levine, David"]
[Result "1-0"]
[Board "193"]
[TimeControl "180+1"]
[WhiteFideId "406520"]
[BlackFideId "2011611"]
[WhiteElo "2015"]
[BlackElo "2020"]
[WhiteTeam "ENG"]
[BlackTeam "USA"]
[WhiteClock "0:01:32"]
[BlackClock "0:01:46"]

1. Nc3 {[%clk 0:03:00]}  d5 {[%clk 0:02:55]} 2. e4 {[%clk 0:03:01]}  c6 {[%clk 0:02:53]} 3. d4 {[%clk 0:03:01]}  dxe4 {[%clk 0:02:47]} 4. Nxe4 {[%clk 0:03:02]}  Bf5 {[%clk 0:02:47]} 5. Ng3 {[%clk 0:03:02]}  Bg6 {[%clk 0:02:47]} 6. Nh3 {[%clk 0:03:00]}  h6 {[%clk 0:02:35]} 7. Bc4 {[%clk 0:02:41]}  e6 {[%clk 0:02:34]} 8. Nf4 {[%clk 0:02:40]}  Bh7 {[%clk 0:02:33]} 9. O-O {[%clk 0:02:39]}  Nf6 {[%clk 0:02:33]} 10. Re1 {[%clk 0:02:22]}  Nd5 {[%clk 0:02:17]} 11. Bxd5 {[%clk 0:01:45]}  cxd5 {[%clk 0:02:16]} 12. Qh5 {[%clk 0:01:45]}  g6 {[%clk 0:02:02]} 13. Qxd5 {[%clk 0:01:43]}  Qxd5 {[%clk 0:02:00]} 14. Nxd5 {[%clk 0:01:43]}  Bd6 {[%clk 0:01:58]} 15. Bxh6 {[%clk 0:01:34]}  Nc6 {[%clk 0:01:51]} 16. Bg7 {[%clk 0:01:32]}  Rg8 {[%clk 0:01:46]} 17. Nf6+ {[%clk 0:01:32]} 1-0

[Event "December 19 Early 2023"]
[Site "https://www.chess.com"]
[Date "2023.12.19"]
[Round "7"]
[White "Olcayoz, Gizem"]
[Black "De Souza, Cristiano Gomes"]
[Result "0-1"]
[Board "195"]
[TimeControl "180+1"]
[WhiteFideId "6301444"]
[BlackFideId "2151758"]
[WhiteElo "1856"]
[BlackElo "2068"]
[WhiteTeam "TUR"]
[BlackTeam "BRA"]
[WhiteClock "0:00:00"]
[BlackClock "0:00:25"]

1. e4 {[%clk 0:03:00]}  c5 {[%clk 0:02:52]} 2. Nc3 {[%clk 0:03:01]}  d6 {[%clk 0:02:51]} 3. d4 {[%clk 0:02:59]}  cxd4 {[%clk 0:02:50]} 4. Qxd4 {[%clk 0:03:00]}  Nf6 {[%clk 0:02:51]} 5. b3 {[%clk 0:02:59]}  Nc6 {[%clk 0:02:51]} 6. Qd2 {[%clk 0:02:59]}  g6 {[%clk 0:02:51]} 7. Bb2 {[%clk 0:02:59]}  Bg7 {[%clk 0:02:51]} 8. O-O-O {[%clk 0:02:59]}  O-O {[%clk 0:02:51]} 9. f3 {[%clk 0:02:59]}  Be6 {[%clk 0:02:48]} 10. Nge2 {[%clk 0:02:58]}  a5 {[%clk 0:02:47]} 11. h4 {[%clk 0:02:51]}  h5 {[%clk 0:02:45]} 12. Kb1 {[%clk 0:02:48]}  b5 {[%clk 0:02:38]} 13. Nf4 {[%clk 0:02:48]}  b4 {[%clk 0:02:36]} 14. Na4 {[%clk 0:02:37]}  Bd7 {[%clk 0:02:34]} 15. g4 {[%clk 0:02:30]}  e5 {[%clk 0:02:29]} 16. Nd5 {[%clk 0:02:21]}  Nxd5 {[%clk 0:02:28]} 17. Qxd5 {[%clk 0:02:22]}  Ne7 {[%clk 0:02:14]} 18. Qxd6 {[%clk 0:02:11]}  Bxa4 {[%clk 0:02:11]} 19. bxa4 {[%clk 0:02:09]}  Qxd6 {[%clk 0:02:07]} 20. Rxd6 {[%clk 0:02:10]}  hxg4 {[%clk 0:02:05]} 21. fxg4 {[%clk 0:02:11]}  Rfd8 {[%clk 0:02:05]} 22. Rxd8+ {[%clk 0:01:57]}  Rxd8 {[%clk 0:02:04]} 23. Bd3 {[%clk 0:01:57]}  Nc6 {[%clk 0:01:55]} 24. Rf1 {[%clk 0:01:43]}  Nd4 {[%clk 0:01:45]} 25. Bc4 {[%clk 0:01:39]}  Rd7 {[%clk 0:01:35]} 26. g5 {[%clk 0:01:35]}  Bf8 {[%clk 0:01:33]} 27. Rf6 {[%clk 0:01:31]}  Kg7 {[%clk 0:01:10]} 28. Ra6 {[%clk 0:01:31]}  Bd6 {[%clk 0:00:51]} 29. Rxa5 {[%clk 0:01:26]}  Nf3 {[%clk 0:00:49]} 30. Rb5 {[%clk 0:01:04]}  Nd2+ {[%clk 0:00:46]} 31. Kc1 {[%clk 0:00:59]}  Nxc4 {[%clk 0:00:47]} 32. a5 {[%clk 0:00:59]}  Ra7 {[%clk 0:00:42]} 33. c3 {[%clk 0:00:44]}  Rxa5 {[%clk 0:00:38]} 34. Rb7 {[%clk 0:00:33]}  bxc3 {[%clk 0:00:36]} 35. Bxc3 {[%clk 0:00:34]}  Rxa2 {[%clk 0:00:35]} 36. Kb1 {[%clk 0:00:13]}  Rh2 {[%clk 0:00:34]} 37. Rd7 {[%clk 0:00:10]}  Rxh4 {[%clk 0:00:29]} 38. Kc2 {[%clk 0:00:10]}  Rxe4 {[%clk 0:00:27]} 39. Kd3 {[%clk 0:00:11]}  Rg4 {[%clk 0:00:26]} 40. Rxd6 {[%clk 0:00:04]}  Nxd6 {[%clk 0:00:26]} 41. Bxe5+ {[%clk 0:00:04]}  Kg8 {[%clk 0:00:26]} 42. Bxd6 {[%clk 0:00:05]}  Rxg5 {[%clk 0:00:26]} 43. Ke3 {[%clk 0:00:04]}  Rd5 {[%clk 0:00:25]} 44. Bf4 {[%clk 0:00:03]}  f5 {[%clk 0:00:25]} 45. Kf3 {[%clk 0:00:02]}  Kf7 {[%clk 0:00:25]} 46. Bg5 {[%clk 0:00:00]}  Ke6 {[%clk 0:00:25]} 0-1

[Event "December 19 Early 2023"]
[Site "https://www.chess.com"]
[Date "2023.12.19"]
[Round "7"]
[White "Vargas, Mauricio"]
[Black "Semenova, Alina"]
[Result "0-1"]
[Board "196"]
[TimeControl "180+1"]
[WhiteFideId "4404572"]
[BlackFideId "24113875"]
[WhiteElo "1982"]
[BlackElo "1827"]
[WhiteTeam "COL"]
[BlackTeam "RUS"]
[WhiteClock "0:00:00"]
[BlackClock "0:00:20"]

1. e4 {[%clk 0:03:00]}  c6 {[%clk 0:02:59]} 2. Nc3 {[%clk 0:02:56]}  d5 {[%clk 0:03:00]} 3. d3 {[%clk 0:02:56]}  dxe4 {[%clk 0:03:00]} 4. Nxe4 {[%clk 0:02:57]}  Nf6 {[%clk 0:02:59]} 5. Ng3 {[%clk 0:02:56]}  Nbd7 {[%clk 0:02:52]} 6. Nf3 {[%clk 0:02:54]}  e6 {[%clk 0:02:52]} 7. Be2 {[%clk 0:02:53]}  Bd6 {[%clk 0:02:53]} 8. O-O {[%clk 0:02:54]}  O-O {[%clk 0:02:53]} 9. d4 {[%clk 0:02:50]}  b6 {[%clk 0:02:50]} 10. c3 {[%clk 0:02:50]}  Bb7 {[%clk 0:02:50]} 11. Bd3 {[%clk 0:02:50]}  c5 {[%clk 0:02:49]} 12. dxc5 {[%clk 0:02:46]}  Nxc5 {[%clk 0:02:50]} 13. Bc2 {[%clk 0:02:43]}  Be7 {[%clk 0:02:47]} 14. Be3 {[%clk 0:02:35]}  Qxd1 {[%clk 0:02:46]} 15. Raxd1 {[%clk 0:02:35]}  Rfd8 {[%clk 0:02:46]} 16. Ne5 {[%clk 0:02:20]}  Nce4 {[%clk 0:02:41]} 17. Nxe4 {[%clk 0:02:15]}  Bxe4 {[%clk 0:02:41]} 18. Bxe4 {[%clk 0:02:13]}  Nxe4 {[%clk 0:02:42]} 19. Nc6 {[%clk 0:02:11]}  Re8 {[%clk 0:02:42]} 20. Rd7 {[%clk 0:02:05]}  Bc5 {[%clk 0:02:26]} 21. Nxa7 {[%clk 0:01:57]}  Nf6 {[%clk 0:01:50]} 22. Rb7 {[%clk 0:01:52]}  Bxe3 {[%clk 0:01:36]} 23. fxe3 {[%clk 0:01:52]}  Reb8 {[%clk 0:01:33]} 24. Rxb8+ {[%clk 0:01:48]}  Rxb8 {[%clk 0:01:34]} 25. Nc6 {[%clk 0:01:46]}  Ra8 {[%clk 0:01:31]} 26. a3 {[%clk 0:01:46]}  Kf8 {[%clk 0:01:27]} 27. Rd1 {[%clk 0:01:43]}  Rc8 {[%clk 0:01:19]} 28. Rd8+ {[%clk 0:01:38]}  Rxd8 {[%clk 0:01:18]} 29. Nxd8 {[%clk 0:01:38]}  Nd5 {[%clk 0:01:07]} 30. Kf2 {[%clk 0:01:34]}  Ke7 {[%clk 0:01:06]} 31. Nc6+ {[%clk 0:01:34]}  Kd6 {[%clk 0:01:06]} 32. Nd4 {[%clk 0:01:33]}  g6 {[%clk 0:01:04]} 33. g3 {[%clk 0:01:28]}  e5 {[%clk 0:01:03]} 34. Nb5+ {[%clk 0:01:25]}  Kc5 {[%clk 0:00:57]} 35. a4 {[%clk 0:01:10]}  f5 {[%clk 0:00:52]} 36. Ke2 {[%clk 0:01:08]}  Kc4 {[%clk 0:00:47]} 37. Kd2 {[%clk 0:00:45]}  Kb3 {[%clk 0:00:45]} 38. Nd6 {[%clk 0:00:28]}  e4 {[%clk 0:00:39]} 39. c4 {[%clk 0:00:18]}  Ne7 {[%clk 0:00:23]} 40. a5 {[%clk 0:00:17]}  bxa5 {[%clk 0:00:22]} 41. c5 {[%clk 0:00:17]}  Kxb2 {[%clk 0:00:22]} 42. Nc4+ {[%clk 0:00:15]}  Kb3 {[%clk 0:00:22]} 43. Nxa5+ {[%clk 0:00:15]}  Kb4 {[%clk 0:00:22]} 44. Nb7 {[%clk 0:00:16]}  Kb5 {[%clk 0:00:22]} 45. Kc3 {[%clk 0:00:16]}  Kc6 {[%clk 0:00:22]} 46. Nd8+ {[%clk 0:00:10]}  Kxc5 {[%clk 0:00:21]} 47. Ne6+ {[%clk 0:00:09]}  Kd6 {[%clk 0:00:19]} 48. Kd2 {[%clk 0:00:03]}  Kxe6 {[%clk 0:00:19]} 49. Kc3 {[%clk 0:00:03]}  Nd5+ {[%clk 0:00:20]} 50. Kd4 {[%clk 0:00:03]}  Nb4 {[%clk 0:00:19]} 51. Kc4 {[%clk 0:00:03]}  Nc2 {[%clk 0:00:19]} 52. Kc3 {[%clk 0:00:01]}  Nxe3 {[%clk 0:00:20]} 53. Kd4 {[%clk 0:00:00]}  Ng2 {[%clk 0:00:20]} 0-1

[Event "December 19 Early 2023"]
[Site "https://www.chess.com"]
[Date "2023.12.19"]
[Round "7"]
[White "Alves Campelo, Danilo Cesar De L"]
[Black "Bogumil, Tatiana"]
[Result "0-1"]
[Board "201"]
[TimeControl "180+1"]
[WhiteFideId "2123657"]
[BlackFideId "4110579"]
[WhiteElo "1994"]
[BlackElo "1853"]
[WhiteTeam "BRA"]
[BlackTeam "RUS"]
[WhiteClock "0:00:00"]
[BlackClock "0:00:54"]

1. e4 {[%clk 0:03:00]}  e6 {[%clk 0:02:57]} 2. d4 {[%clk 0:03:00]}  d5 {[%clk 0:02:57]} 3. Nd2 {[%clk 0:03:00]}  dxe4 {[%clk 0:02:57]} 4. Nxe4 {[%clk 0:03:01]}  Bd7 {[%clk 0:02:58]} 5. Nf3 {[%clk 0:03:01]}  Bc6 {[%clk 0:02:58]} 6. Bd3 {[%clk 0:03:01]}  Nd7 {[%clk 0:02:57]} 7. O-O {[%clk 0:02:54]}  Ngf6 {[%clk 0:02:57]} 8. Ng3 {[%clk 0:02:52]}  Be7 {[%clk 0:02:56]} 9. Re1 {[%clk 0:02:46]}  O-O {[%clk 0:02:54]} 10. c4 {[%clk 0:02:42]}  Bb4 {[%clk 0:02:47]} 11. Bd2 {[%clk 0:02:38]}  Bxd2 {[%clk 0:02:47]} 12. Nxd2 {[%clk 0:02:37]}  b6 {[%clk 0:02:44]} 13. b4 {[%clk 0:02:33]}  Bb7 {[%clk 0:02:44]} 14. Nde4 {[%clk 0:02:09]}  a5 {[%clk 0:02:05]} 15. b5 {[%clk 0:01:59]}  a4 {[%clk 0:01:53]} 16. c5 {[%clk 0:01:54]}  Bd5 {[%clk 0:01:47]} 17. c6 {[%clk 0:01:02]}  Nxe4 {[%clk 0:01:45]} 18. Bxe4 {[%clk 0:00:48]}  Nf6 {[%clk 0:01:43]} 19. a3 {[%clk 0:00:44]}  Ra5 {[%clk 0:01:39]} 20. Qd3 {[%clk 0:00:37]}  Qd6 {[%clk 0:01:29]} 21. Bxd5 {[%clk 0:00:29]}  Qxd5 {[%clk 0:01:23]} 22. Re5 {[%clk 0:00:29]}  Qb3 {[%clk 0:01:22]} 23. Qe2 {[%clk 0:00:14]}  Rd8 {[%clk 0:01:16]} 24. Rg5 {[%clk 0:00:13]}  Rxd4 {[%clk 0:01:05]} 25. Nh5 {[%clk 0:00:13]}  Nxh5 {[%clk 0:01:00]} 26. Qxh5 {[%clk 0:00:14]}  g6 {[%clk 0:00:56]} 27. Qh6 {[%clk 0:00:00]}  Rd1+ {[%clk 0:00:54]} 0-1